[Event "*** Titled Tuesday Blitz"]
[Site "Chess.com"]
[Date "2020.04.14"]
[Round "2"]
[White "RitvarsReimanis"]
[Black "Igor_Lysyj"]
[Result "1-0"]
[WhiteElo "2584"]
[BlackElo "2808"]
[TimeControl "180+1"]
[EndTime "10:18:56 PDT"]
[Termination "RitvarsReimanis won by resignation"]

1. d4 {[%clk 0:03:00.9]} 1... d5 {[%clk 0:02:59.4]} 2. c4 {[%clk 0:03:01.3]}
2... e6 {[%clk 0:02:59.3]} 3. Nf3 {[%clk 0:03:01.2]} 3... Nf6 {[%clk 0:02:58.6]}
4. Nc3 {[%clk 0:03:01]} 4... dxc4 {[%clk 0:02:58.6]} 5. e3 {[%clk 0:03:00.3]}
5... a6 {[%clk 0:02:57.3]} 6. Bxc4 {[%clk 0:03:00.3]} 6... b5 {[%clk 0:02:56.4]}
7. Bb3 {[%clk 0:02:56.7]} 7... Bb7 {[%clk 0:02:55.5]} 8. O-O {[%clk 0:02:56]}
8... Nbd7 {[%clk 0:02:55.3]} 9. Qe2 {[%clk 0:02:54.8]} 9... c5 {[%clk
0:02:54.2]} 10. Rd1 {[%clk 0:02:54.3]} 10... Qc7 {[%clk 0:02:52.5]} 11. d5
{[%clk 0:02:46.3]} 11... c4 {[%clk 0:02:46.6]} 12. dxe6 {[%clk 0:02:45.2]} 12...
fxe6 {[%clk 0:02:43.5]} 13. Bc2 {[%clk 0:02:42.5]} 13... Bd6 {[%clk 0:02:41.1]}
14. e4 {[%clk 0:02:32.8]} 14... O-O {[%clk 0:02:33.4]} 15. a3 {[%clk 0:02:31.5]}
15... Ne5 {[%clk 0:02:28.5]} 16. Nxe5 {[%clk 0:02:06.1]} 16... Bxe5 {[%clk
0:02:28]} 17. g3 {[%clk 0:02:05.7]} 17... Qc6 {[%clk 0:02:17.6]} 18. f4 {[%clk
0:01:54.6]} 18... Bxc3 {[%clk 0:02:15.2]} 19. bxc3 {[%clk 0:01:54.1]} 19... Nxe4
{[%clk 0:02:08.3]} 20. Bxe4 {[%clk 0:01:47.2]} 20... Qxe4 {[%clk 0:02:08]} 21.
Qxe4 {[%clk 0:01:47.6]} 21... Bxe4 {[%clk 0:02:07.5]} 22. Re1 {[%clk 0:01:33.2]}
22... Bf5 {[%clk 0:01:57.7]} 23. Be3 {[%clk 0:01:32.2]} 23... a5 {[%clk
0:01:41.1]} 24. Rad1 {[%clk 0:01:20.2]} 24... Bd3 {[%clk 0:01:18.8]} 25. Bb6
{[%clk 0:01:12.5]} 25... Kf7 {[%clk 0:01:09.8]} 26. Re5 {[%clk 0:01:12]} 26...
Rfb8 {[%clk 0:01:09.2]} 27. Bc5 {[%clk 0:01:04.6]} 27... Rb7 {[%clk 0:01:07]}
28. Rde1 {[%clk 0:01:00.8]} 28... Ra6 {[%clk 0:01:05.6]} 29. g4 {[%clk
0:00:57.2]} 29... g6 {[%clk 0:01:01.9]} 30. Kf2 {[%clk 0:00:55.3]} 30... Rc6
{[%clk 0:01:00.2]} 31. h4 {[%clk 0:00:50.2]} 31... Rbc7 {[%clk 0:00:58.4]} 32.
Bd4 {[%clk 0:00:48.7]} 32... Rb7 {[%clk 0:00:56.8]} 33. Bc5 {[%clk 0:00:48.1]}
33... Rd7 {[%clk 0:00:55.2]} 34. h5 {[%clk 0:00:43.9]} 34... gxh5 {[%clk
0:00:50.7]} 35. Rxh5 {[%clk 0:00:37]} 35... Bg6 {[%clk 0:00:46.3]} 36. Rhe5
{[%clk 0:00:35.4]} 36... Bd3 {[%clk 0:00:17.8]} 37. f5 {[%clk 0:00:32.2]} 37...
exf5 {[%clk 0:00:17.8]} 38. gxf5 {[%clk 0:00:33.1]} 38... Kf6 {[%clk 0:00:15.4]}
39. Re6+ {[%clk 0:00:32.6]} 39... Rxe6 {[%clk 0:00:14.8]} 40. fxe6 {[%clk
0:00:33.5]} 40... Rd8 {[%clk 0:00:14.4]} 41. Bb6 {[%clk 0:00:28]} 41... Re8
{[%clk 0:00:13.9]} 42. Bxa5 {[%clk 0:00:26.7]} 42... h5 {[%clk 0:00:13.6]} 43.
e7 {[%clk 0:00:25.4]} 43... Kf7 {[%clk 0:00:12.7]} 44. Bb4 {[%clk 0:00:24.7]}
44... h4 {[%clk 0:00:10.8]} 45. Kg2 {[%clk 0:00:23.6]} 45... Rh8 {[%clk
0:00:10.4]} 46. Kh2 {[%clk 0:00:21]} 46... Re8 {[%clk 0:00:08.5]} 47. Re3 {[%clk
0:00:20.4]} 47... Rh8 {[%clk 0:00:08.1]} 48. Rf3+ {[%clk 0:00:19.7]} 48... Kg7
{[%clk 0:00:06]} 49. Rf8 {[%clk 0:00:18]} 49... Bg6 {[%clk 0:00:05.7]} 50. Bc5
{[%clk 0:00:14.9]} 50... Kh7 {[%clk 0:00:05.3]} 51. Bd4 {[%clk 0:00:12]} 51...
Rg8 {[%clk 0:00:05.2]} 52. Kh3 {[%clk 0:00:11.4]} 52... Be8 {[%clk 0:00:05]} 53.
Kxh4 {[%clk 0:00:11.2]} 53... Bd7 {[%clk 0:00:05]} 54. Rxg8 {[%clk 0:00:10]}
54... Kxg8 {[%clk 0:00:04.4]} 55. Kg5 {[%clk 0:00:10.5]} 55... Kf7 {[%clk
0:00:04.8]} 56. Bc5 {[%clk 0:00:11.1]} 56... Ke8 {[%clk 0:00:05]} 57. Kf6 {[%clk
0:00:10.8]} 57... Bg4 {[%clk 0:00:05]} 58. Ke5 {[%clk 0:00:11.7]} 58... Bd1
{[%clk 0:00:04.7]} 59. Kd6 {[%clk 0:00:11.9]} 59... Ba4 {[%clk 0:00:05.2]} 60.
Bb4 {[%clk 0:00:12.8]} 60... Bb3 {[%clk 0:00:04.5]} 61. Kc6 {[%clk 0:00:13.1]}
61... Ba4 {[%clk 0:00:05]} 62. Kc7 {[%clk 0:00:12.4]} 62... Bb3 {[%clk
0:00:03.9]} 63. Kb7 {[%clk 0:00:12.9]} 63... Ba4 {[%clk 0:00:04.2]} 64. Kb6
{[%clk 0:00:13.2]} 64... Kd7 {[%clk 0:00:04.4]} 65. Kb7 {[%clk 0:00:12.9]} 65...
Ke8 {[%clk 0:00:04.8]} 66. Kc7 {[%clk 0:00:13.4]} 66... Bb3 {[%clk 0:00:04]} 67.
Kd6 {[%clk 0:00:13.9]} 67... Ba4 {[%clk 0:00:04.5]} 68. Kc5 {[%clk 0:00:14.3]}
68... Kd7 {[%clk 0:00:03.3]} 69. Kd5 {[%clk 0:00:14.6]} 69... Ke8 {[%clk
0:00:03.3]} 70. Kc6 {[%clk 0:00:15.1]} 70... Bc2 {[%clk 0:00:01.8]} 71. Kxb5
{[%clk 0:00:15.2]} 71... Kd7 {[%clk 0:00:02.1]} 72. Kxc4 {[%clk 0:00:14.2]} 1-0

[Event "*** Titled Tuesday Blitz"]
[Site "Chess.com"]
[Date "2020.04.14"]
[Round "2"]
[White "Carnivoras"]
[Black "Trickov"]
[Result "1/2-1/2"]
[WhiteElo "2644"]
[BlackElo "2269"]
[TimeControl "180+1"]
[EndTime "10:18:56 PDT"]
[Termination "Game drawn by repetition"]

1. d4 {[%clk 0:03:00.9]} 1... d5 {[%clk 0:02:59.4]} 2. Nf3 {[%clk 0:03:01.4]}
2... Nf6 {[%clk 0:02:59]} 3. Bg5 {[%clk 0:03:01.5]} 3... Ne4 {[%clk 0:02:58]} 4.
Bh4 {[%clk 0:03:01.3]} 4... c5 {[%clk 0:02:55.9]} 5. c3 {[%clk 0:02:58.5]} 5...
cxd4 {[%clk 0:02:51.3]} 6. cxd4 {[%clk 0:02:58.5]} 6... Nc6 {[%clk 0:02:49.8]}
7. e3 {[%clk 0:02:57.9]} 7... Qb6 {[%clk 0:02:48.9]} 8. Qc1 {[%clk 0:02:54.2]}
8... e6 {[%clk 0:02:41.1]} 9. Bd3 {[%clk 0:02:50.8]} 9... Bb4+ {[%clk
0:02:39.2]} 10. Nc3 {[%clk 0:02:48.3]} 10... f5 {[%clk 0:02:24.8]} 11. O-O
{[%clk 0:02:46]} 11... O-O {[%clk 0:02:24.5]} 12. a3 {[%clk 0:02:42.5]} 12...
Bd6 {[%clk 0:02:22.5]} 13. b4 {[%clk 0:02:31.3]} 13... Bd7 {[%clk 0:02:19.2]}
14. Na4 {[%clk 0:02:30.4]} 14... Qc7 {[%clk 0:02:16.7]} 15. Nc5 {[%clk
0:02:30.5]} 15... Rac8 {[%clk 0:02:10.4]} 16. Bg3 {[%clk 0:02:22.8]} 16... Nxg3
{[%clk 0:02:05.6]} 17. hxg3 {[%clk 0:02:23]} 17... b6 {[%clk 0:02:02.1]} 18.
Nxd7 {[%clk 0:02:18.5]} 18... Qxd7 {[%clk 0:02:02.2]} 19. Qb2 {[%clk 0:02:18.1]}
19... Nb8 {[%clk 0:01:50.9]} 20. Rfc1 {[%clk 0:02:16.6]} 20... b5 {[%clk
0:01:47.9]} 21. Nd2 {[%clk 0:02:05.8]} 21... a6 {[%clk 0:01:38]} 22. Nb3 {[%clk
0:02:05.7]} 22... Rxc1+ {[%clk 0:01:33.9]} 23. Rxc1 {[%clk 0:02:05.2]} 23... Rc8
{[%clk 0:01:34.4]} 24. Nc5 {[%clk 0:02:04.7]} 24... Bxc5 {[%clk 0:01:33]} 25.
bxc5 {[%clk 0:01:57.5]} 25... Nc6 {[%clk 0:01:29.9]} 26. Rb1 {[%clk 0:01:45.6]}
26... Rb8 {[%clk 0:01:27.4]} 27. Qc3 {[%clk 0:01:29]} 27... Qc7 {[%clk
0:01:26.5]} 28. Rb2 {[%clk 0:01:24.3]} 28... Qa5 {[%clk 0:01:26.2]} 29. Qxa5
{[%clk 0:00:39.3]} 29... Nxa5 {[%clk 0:01:25.6]} 30. a4 {[%clk 0:00:39.9]} 30...
Nc4 {[%clk 0:01:12.6]} 31. Rb4 {[%clk 0:00:38.9]} 31... Kf8 {[%clk 0:01:09.6]}
32. Kf1 {[%clk 0:00:38.6]} 32... Ke7 {[%clk 0:01:09.6]} 33. Ke2 {[%clk
0:00:35.6]} 33... Kd7 {[%clk 0:01:09.8]} 34. g4 {[%clk 0:00:19.8]} 34... g6
{[%clk 0:01:08]} 35. gxf5 {[%clk 0:00:19.6]} 35... gxf5 {[%clk 0:01:06.5]} 36.
axb5 {[%clk 0:00:18.5]} 36... Rxb5 {[%clk 0:01:02.4]} 37. Rxb5 {[%clk 0:00:18]}
37... axb5 {[%clk 0:01:02]} 38. Kd1 {[%clk 0:00:14.8]} 38... Kc6 {[%clk
0:00:57]} 39. Kc2 {[%clk 0:00:15.1]} 39... h6 {[%clk 0:00:53.9]} 40. Kc3 {[%clk
0:00:15.3]} 40... Kb7 {[%clk 0:00:36.2]} 41. Kb4 {[%clk 0:00:15.2]} 41... Kc6
{[%clk 0:00:36.3]} 42. Be2 {[%clk 0:00:15.5]} 42... e5 {[%clk 0:00:19.7]} 43.
Bxc4 {[%clk 0:00:12.7]} 43... bxc4 {[%clk 0:00:14.2]} 44. dxe5 {[%clk
0:00:11.1]} 44... Kd7 {[%clk 0:00:14.1]} 45. f3 {[%clk 0:00:09.4]} 45... Ke6
{[%clk 0:00:13.6]} 46. c6 {[%clk 0:00:08.1]} 46... h5 {[%clk 0:00:12.1]} 47. Kc3
{[%clk 0:00:08.3]} 47... h4 {[%clk 0:00:11]} 48. Kd4 {[%clk 0:00:08.8]} 48...
Ke7 {[%clk 0:00:10.8]} 49. f4 {[%clk 0:00:08.7]} 49... Ke6 {[%clk 0:00:10.1]}
50. Kc3 {[%clk 0:00:09]} 50... Ke7 {[%clk 0:00:10.1]} 51. Kd4 {[%clk 0:00:09.4]}
51... Ke6 {[%clk 0:00:10.4]} 52. e4 {[%clk 0:00:09.4]} 52... dxe4 {[%clk
0:00:08.9]} 53. Kxc4 {[%clk 0:00:09.5]} 53... Ke7 {[%clk 0:00:09]} 54. Kd4
{[%clk 0:00:10.1]} 54... Ke6 {[%clk 0:00:09.2]} 55. Ke3 {[%clk 0:00:10.6]} 55...
Ke7 {[%clk 0:00:09.3]} 56. Kf2 {[%clk 0:00:11.1]} 56... Ke6 {[%clk 0:00:09.5]}
57. Kg1 {[%clk 0:00:11.3]} 57... Ke7 {[%clk 0:00:09.6]} 58. Kf2 {[%clk
0:00:11.1]} 58... Ke6 {[%clk 0:00:09.8]} 59. Ke3 {[%clk 0:00:11.4]} 59... Ke7
{[%clk 0:00:09.9]} 60. Ke2 {[%clk 0:00:10.1]} 60... Ke6 {[%clk 0:00:10.2]} 61.
Kd2 {[%clk 0:00:11]} 61... Ke7 {[%clk 0:00:10.5]} 62. Ke3 {[%clk 0:00:11.6]}
62... Ke6 {[%clk 0:00:10.9]} 63. Kd4 {[%clk 0:00:12]} 63... Ke7 {[%clk
0:00:11.2]} 64. Ke3 {[%clk 0:00:09.5]} 64... Ke6 {[%clk 0:00:11.4]} 65. Kf2
{[%clk 0:00:09.7]} 65... Ke7 {[%clk 0:00:11.6]} 66. Kg1 {[%clk 0:00:08.4]} 66...
Ke6 {[%clk 0:00:12]} 67. Kh2 {[%clk 0:00:08.8]} 67... Ke7 {[%clk 0:00:12.3]} 68.
Kg1 {[%clk 0:00:09]} 68... Ke6 {[%clk 0:00:11.5]} 69. Kf1 {[%clk 0:00:09.7]}
69... Ke7 {[%clk 0:00:11.8]} 70. Ke1 {[%clk 0:00:09.9]} 70... Ke6 {[%clk
0:00:12.4]} 71. Kd2 {[%clk 0:00:10]} 71... Ke7 {[%clk 0:00:12.7]} 72. Kc3 {[%clk
0:00:10.4]} 72... Ke6 {[%clk 0:00:13.2]} 73. Kc4 {[%clk 0:00:10.8]} 73... Ke7
{[%clk 0:00:13.5]} 74. Kd4 {[%clk 0:00:09.6]} 74... Ke6 {[%clk 0:00:13.7]} 75.
Ke3 {[%clk 0:00:08.4]} 1/2-1/2

[Event "*** Titled Tuesday Blitz"]
[Site "Chess.com"]
[Date "2020.04.14"]
[Round "2"]
[White "serhanberat_ozdemir"]
[Black "MisiekZielony"]
[Result "1-0"]
[WhiteElo "2437"]
[BlackElo "2176"]
[TimeControl "180+1"]
[EndTime "10:18:58 PDT"]
[Termination "serhanberat_ozdemir won on time"]

1. e4 {[%clk 0:03:00.4]} 1... Nf6 {[%clk 0:02:59.6]} 2. Nc3 {[%clk 0:02:59.9]}
2... d5 {[%clk 0:02:59.5]} 3. exd5 {[%clk 0:03:00.8]} 3... Nxd5 {[%clk
0:02:59.5]} 4. Bc4 {[%clk 0:03:01.1]} 4... Nb6 {[%clk 0:02:59.5]} 5. Bb3 {[%clk
0:02:58.4]} 5... Nc6 {[%clk 0:02:59.6]} 6. Nf3 {[%clk 0:02:56.5]} 6... Na5
{[%clk 0:02:59.4]} 7. O-O {[%clk 0:02:50.3]} 7... Nxb3 {[%clk 0:02:59.2]} 8.
axb3 {[%clk 0:02:51.2]} 8... e6 {[%clk 0:02:59.4]} 9. d4 {[%clk 0:02:50.8]} 9...
Be7 {[%clk 0:02:59]} 10. Be3 {[%clk 0:02:49.7]} 10... O-O {[%clk 0:02:58.1]} 11.
Qd2 {[%clk 0:02:48]} 11... Nd5 {[%clk 0:02:50.8]} 12. Nxd5 {[%clk 0:02:34.5]}
12... exd5 {[%clk 0:02:50.5]} 13. c4 {[%clk 0:02:33.1]} 13... c6 {[%clk
0:02:42.5]} 14. Ne5 {[%clk 0:02:28]} 14... f6 {[%clk 0:02:33.3]} 15. Nf3 {[%clk
0:02:24.6]} 15... Bg4 {[%clk 0:02:27.9]} 16. Ne1 {[%clk 0:02:14.9]} 16... dxc4
{[%clk 0:02:10.6]} 17. bxc4 {[%clk 0:02:15.8]} 17... Be6 {[%clk 0:02:09.5]} 18.
b3 {[%clk 0:02:11.3]} 18... b5 {[%clk 0:02:09.1]} 19. Rc1 {[%clk 0:02:09.6]}
19... bxc4 {[%clk 0:02:07.8]} 20. bxc4 {[%clk 0:02:09.2]} 20... a5 {[%clk
0:02:02.7]} 21. Nd3 {[%clk 0:02:01.6]} 21... a4 {[%clk 0:02:02.5]} 22. Nf4
{[%clk 0:02:01.4]} 22... Bf7 {[%clk 0:02:02.2]} 23. Rfd1 {[%clk 0:01:54.2]}
23... Qa5 {[%clk 0:01:53.1]} 24. Qxa5 {[%clk 0:01:25.8]} 24... Rxa5 {[%clk
0:01:52.5]} 25. d5 {[%clk 0:01:25.1]} 25... cxd5 {[%clk 0:01:23.2]} 26. cxd5
{[%clk 0:01:26]} 26... Bd6 {[%clk 0:01:10.8]} 27. Ne6 {[%clk 0:01:18.3]} 27...
Rfa8 {[%clk 0:01:04.9]} 28. Rc6 {[%clk 0:01:15.8]} 28... R5a6 {[%clk 0:00:52.6]}
29. Rdc1 {[%clk 0:01:09.9]} 29... Bxe6 {[%clk 0:00:50.7]} 30. Rxa6 {[%clk
0:01:04.3]} 30... Rxa6 {[%clk 0:00:49.3]} 31. dxe6 {[%clk 0:01:04.9]} 31... g5
{[%clk 0:00:41]} 32. f4 {[%clk 0:01:02.5]} 32... gxf4 {[%clk 0:00:34.5]} 33.
Rc8+ {[%clk 0:00:49.3]} 33... Kg7 {[%clk 0:00:34.1]} 34. Bxf4 {[%clk 0:00:45.1]}
34... Be7 {[%clk 0:00:28.5]} 35. Rc7 {[%clk 0:00:42.9]} 35... Rxe6 {[%clk
0:00:28.2]} 36. Bd6 {[%clk 0:00:38.5]} 36... Rxd6 {[%clk 0:00:25.9]} 37. Rxe7+
{[%clk 0:00:38.4]} 37... Kg6 {[%clk 0:00:26]} 38. Ra7 {[%clk 0:00:36.2]} 38...
Rd4 {[%clk 0:00:26]} 39. Kf2 {[%clk 0:00:32.9]} 39... h5 {[%clk 0:00:25.5]} 40.
Ra5 {[%clk 0:00:31.4]} 40... f5 {[%clk 0:00:24.7]} 41. g3 {[%clk 0:00:30.3]}
41... Kg5 {[%clk 0:00:24.6]} 42. Ra8 {[%clk 0:00:28.4]} 42... Rb4 {[%clk
0:00:15.4]} 43. h3 {[%clk 0:00:23.6]} 43... Rb2+ {[%clk 0:00:12.5]} 44. Kf3
{[%clk 0:00:20.2]} 44... Rb3+ {[%clk 0:00:12.3]} 45. Kg2 {[%clk 0:00:20.4]}
45... a3 {[%clk 0:00:09.7]} 46. Ra6 {[%clk 0:00:17.6]} 46... f4 {[%clk
0:00:09.2]} 47. Ra5+ {[%clk 0:00:15.4]} 47... Kf6 {[%clk 0:00:09.2]} 48. gxf4
{[%clk 0:00:15]} 48... h4 {[%clk 0:00:09.3]} 49. Re5 {[%clk 0:00:07]} 49... Rg3+
{[%clk 0:00:07.5]} 50. Kh2 {[%clk 0:00:05.8]} 50... Rf3 {[%clk 0:00:07.3]} 51.
Kg2 {[%clk 0:00:03.1]} 51... Rb3 {[%clk 0:00:06]} 52. Ra5 {[%clk 0:00:02.6]}
52... Ke6 {[%clk 0:00:06.1]} 53. Rh5 {[%clk 0:00:01.7]} 53... Rb2+ {[%clk
0:00:05.2]} 54. Kf3 {[%clk 0:00:01.8]} 54... Rb3+ {[%clk 0:00:04.6]} 55. Kg4
{[%clk 0:00:02.7]} 55... a2 {[%clk 0:00:02.9]} 56. Ra5 {[%clk 0:00:03.6]} 56...
Rb2 {[%clk 0:00:03]} 57. Kxh4 {[%clk 0:00:04.5]} 57... Kf6 {[%clk 0:00:02.6]}
58. Kg3 {[%clk 0:00:05.4]} 58... Rb3+ {[%clk 0:00:02.4]} 59. Kg4 {[%clk
0:00:06.3]} 59... Rb2 {[%clk 0:00:02.7]} 60. Ra6+ {[%clk 0:00:06.1]} 60... Kf7
{[%clk 0:00:02.3]} 61. h4 {[%clk 0:00:07]} 1-0

[Event "*** Titled Tuesday Blitz"]
[Site "Chess.com"]
[Date "2020.04.14"]
[Round "2"]
[White "Ind1anStar"]
[Black "Siemba"]
[Result "1-0"]
[WhiteElo "2594"]
[BlackElo "2230"]
[TimeControl "180+1"]
[EndTime "10:19:08 PDT"]
[Termination "Ind1anStar won on time"]

1. c4 {[%clk 0:03:00.9]} 1... Nf6 {[%clk 0:02:58.9]} 2. Nc3 {[%clk 0:03:00.5]}
2... g6 {[%clk 0:02:58.5]} 3. g3 {[%clk 0:02:59.2]} 3... Bg7 {[%clk 0:02:58.6]}
4. Bg2 {[%clk 0:02:58.6]} 4... O-O {[%clk 0:02:59.1]} 5. Nf3 {[%clk 0:02:57.5]}
5... d6 {[%clk 0:02:54.1]} 6. O-O {[%clk 0:02:57.7]} 6... e5 {[%clk 0:02:53.2]}
7. d3 {[%clk 0:02:58.4]} 7... Nc6 {[%clk 0:02:53.3]} 8. Rb1 {[%clk 0:02:59]}
8... a5 {[%clk 0:02:53.8]} 9. a3 {[%clk 0:02:58.9]} 9... Re8 {[%clk 0:02:54.4]}
10. b4 {[%clk 0:02:59]} 10... axb4 {[%clk 0:02:55.1]} 11. axb4 {[%clk
0:02:59.7]} 11... e4 {[%clk 0:02:55.7]} 12. dxe4 {[%clk 0:02:58.1]} 12... Nxe4
{[%clk 0:02:56.6]} 13. Nxe4 {[%clk 0:02:58.5]} 13... Rxe4 {[%clk 0:02:57.2]} 14.
Nd2 {[%clk 0:02:59.1]} 14... Re8 {[%clk 0:02:57]} 15. Bb2 {[%clk 0:02:54.3]}
15... Bg4 {[%clk 0:02:30.8]} 16. Nf3 {[%clk 0:02:41.7]} 16... Bf5 {[%clk
0:02:20.5]} 17. Bxg7 {[%clk 0:02:33.7]} 17... Bxb1 {[%clk 0:02:20.4]} 18. Bc3
{[%clk 0:02:31.1]} 18... Be4 {[%clk 0:02:19.5]} 19. Nd4 {[%clk 0:02:27.3]} 19...
Bxg2 {[%clk 0:02:16.1]} 20. Kxg2 {[%clk 0:02:28.2]} 20... Qe7 {[%clk 0:02:12.9]}
21. e3 {[%clk 0:02:25]} 21... Ra2 {[%clk 0:02:08]} 22. Nxc6 {[%clk 0:02:02.5]}
22... bxc6 {[%clk 0:02:01.3]} 23. Kg1 {[%clk 0:02:02.2]} 23... Qe4 {[%clk
0:01:55]} 24. Bd4 {[%clk 0:01:49.9]} 24... Qc2 {[%clk 0:01:41.1]} 25. Qf3 {[%clk
0:01:48.1]} 25... Qf5 {[%clk 0:01:34.1]} 26. Qxc6 {[%clk 0:01:46.7]} 26... Re7
{[%clk 0:01:32.5]} 27. Qb7 {[%clk 0:01:42.5]} 27... f6 {[%clk 0:01:27.1]} 28.
Qb8+ {[%clk 0:01:39.5]} 28... Kg7 {[%clk 0:01:26.5]} 29. c5 {[%clk 0:01:30.7]}
29... dxc5 {[%clk 0:01:23.5]} 30. Bxc5 {[%clk 0:01:31.6]} 30... Rf7 {[%clk
0:01:21.1]} 31. Qd8 {[%clk 0:01:29]} 31... Rc2 {[%clk 0:01:14.6]} 32. Bd4 {[%clk
0:01:13.8]} 32... h5 {[%clk 0:01:09.3]} 33. h4 {[%clk 0:01:13.7]} 33... Rc4
{[%clk 0:00:59]} 34. Bc5 {[%clk 0:01:09.2]} 34... Rg4 {[%clk 0:00:39.8]} 35. Ra1
{[%clk 0:01:00]} 35... Qd7 {[%clk 0:00:17.3]} 36. Qb8 {[%clk 0:00:53.8]} 36...
g5 {[%clk 0:00:05.5]} 37. Ra8 {[%clk 0:00:53.4]} 37... Kg6 {[%clk 0:00:03]} 38.
hxg5 {[%clk 0:00:37.6]} 38... Rxg5 {[%clk 0:00:02.3]} 39. Kh2 {[%clk 0:00:27.8]}
39... h4 {[%clk 0:00:02.6]} 40. Qb7 {[%clk 0:00:18.8]} 40... hxg3+ {[%clk
0:00:02.2]} 41. fxg3 {[%clk 0:00:19.7]} 41... Rh5+ {[%clk 0:00:02.7]} 42. Kg2
{[%clk 0:00:20.3]} 42... Qh3+ {[%clk 0:00:02.8]} 43. Kf3 {[%clk 0:00:20.6]}
43... Qh1+ {[%clk 0:00:03]} 44. Kg4 {[%clk 0:00:11.1]} 44... Qxb7 {[%clk
0:00:03.9]} 45. Rg8+ {[%clk 0:00:10.8]} 45... Kh7 {[%clk 0:00:03.5]} 46. Re8
{[%clk 0:00:09.9]} 46... Qe4+ {[%clk 0:00:04]} 47. Rxe4 {[%clk 0:00:09.5]} 47...
f5+ {[%clk 0:00:04.9]} 48. Kxh5 {[%clk 0:00:09]} 48... fxe4 {[%clk 0:00:05.8]}
49. Bd4 {[%clk 0:00:09.2]} 49... Rf3 {[%clk 0:00:06.4]} 50. Kh4 {[%clk
0:00:09.8]} 50... Kg6 {[%clk 0:00:06.3]} 51. g4 {[%clk 0:00:10.5]} 51... Rf1
{[%clk 0:00:06.3]} 52. Bc5 {[%clk 0:00:11]} 52... Rh1+ {[%clk 0:00:05.8]} 53.
Kg3 {[%clk 0:00:11.7]} 53... Rf1 {[%clk 0:00:05.6]} 54. Bd4 {[%clk 0:00:11]}
54... c6 {[%clk 0:00:05.4]} 55. Bc5 {[%clk 0:00:11.2]} 55... Rf3+ {[%clk
0:00:04.5]} 56. Kh4 {[%clk 0:00:10.1]} 56... Rf1 {[%clk 0:00:04.5]} 57. Kg3
{[%clk 0:00:10.8]} 57... Rf7 {[%clk 0:00:03.9]} 58. Bd4 {[%clk 0:00:10.4]} 58...
Rd7 {[%clk 0:00:03.8]} 59. Kf4 {[%clk 0:00:10.1]} 59... Re7 {[%clk 0:00:04.4]}
60. Be5 {[%clk 0:00:10.6]} 60... Re8 {[%clk 0:00:01.9]} 61. Kxe4 {[%clk
0:00:10.1]} 61... Kf7 {[%clk 0:00:02.8]} 62. Kf5 {[%clk 0:00:09.9]} 62... Rc8
{[%clk 0:00:02.3]} 63. g5 {[%clk 0:00:10.5]} 63... Rg8 {[%clk 0:00:02.1]} 64.
Bd6 {[%clk 0:00:10.3]} 64... Rg6 {[%clk 0:00:02.2]} 65. Bc5 {[%clk 0:00:09.3]}
65... Rg8 {[%clk 0:00:02.2]} 66. e4 {[%clk 0:00:09.8]} 66... Ke8 {[%clk
0:00:01.8]} 67. e5 {[%clk 0:00:10.2]} 67... Rg7 {[%clk 0:00:02.4]} 68. e6 {[%clk
0:00:09.7]} 68... Rg8 {[%clk 0:00:03.3]} 69. Kf6 {[%clk 0:00:10.2]} 69... Rh8
{[%clk 0:00:03.7]} 70. g6 {[%clk 0:00:10.6]} 70... Rh1 {[%clk 0:00:04.3]} 71. g7
{[%clk 0:00:07.9]} 71... Rf1+ {[%clk 0:00:04.4]} 72. Kg6 {[%clk 0:00:08.5]} 1-0